Workbook

Sheet MSU
B1: Jouni Oja-Lipasti | E1: 1.6.1985 Ilmajoki
B2: SUPERPESIS | E2: Runkosarja | I2: Kärkilyönnit (KL), pesänvälit | P2: Runkosarja TOP-30 | U2: Ylempi loppusarja | AB2: Ylempi loppusarja TOP-10 | AG2: Play off, voitot, voittoprosentti | AL2: Arvo-ottelut | AO2: Mitalit
B3: Vuosi | C3: Sija | D3: Seura | E3: OTT | F3: KUN | G3: LÖI | H3: TOI | I3: KL | J3: 0 > 1 | K3: 1 > 2 | L3: 2 > 3 | M3: 3 > k | N3: KL-% | P3: LÖI | Q3: TOI | R3: L+T | S3: KL | U3: OTT | V3: KUN | W3: LÖI | X3: TOI | Y3: KL | Z3: KL-% | AB3: LÖI | AC3: TOI | AD3: L+T | AE3: KL | AG3: Puolivälierät | AH3: Välierät | AI3: Pronssi | AJ3: Finaalit | AL3: IL | AM3: LL | AN3: hSM | AO3: K | AP3: H | AQ3: P
B4: 2002 | C4: 1. | D4: KylKai | F4: suomensarja | AA4: 0
B5: 2003 | C5: 14. | D5: KylKai | F5: ykköspesis | AA5: 0
B6: 2004 | C6: 7. | D6: KaKa | F6: ykköspesis
B7: 2005 | C7: 8. | D7: KaKa | F7: ykköspesis | AA7: 0
B8: 2005 | C8: 11. | D8: KoU | E8: 2 | F8: 0 | G8: 0 | H8: 1 | I8: 1 | J8: 1 | K8: 0 | L8: 0 | M8: 0 | N8: 20.0 %
B9: 2006 | C9: 11. | D9: KaKa | F9: ykköspesis
B10: 2006 | C10: 6. | D10: KoU | E10: 22 | F10: 0 | G10: 1 | H10: 8 | I10: 58 | J10: 49 | K10: 7 | L10: 1 | M10: 1 | N10: 48.3 % | U10: 7 | V10: 0 | W10: 0 | X10: 1 | Y10: 12 | Z10: 31.6 % | AG10: Jatkosarja 6.
B11: 2007 | C11: 3. | D11: KoU | E11: 26 | F11: 2 | G11: 9 | H11: 11 | I11: 62 | J11: 40 | K11: 8 | L11: 3 | M11: 11 | N11: 49.6 % | U11: 12 | V11: 0 | W11: 1 | X11: 1 | Y11: 9 | Z11: 29.0 % | AG11: Jatkosarja 4. | AH11: 0-3 SoJy | AI11: 3-2 NJ (pist.) | AQ11: 1
B12: 2008 | C12: 11. | D12: KoU | E12: 23 | F12: 0 | G12: 0 | H12: 5 | I12: 35 | J12: 31 | K12: 3 | L12: 1 | M12: 0 | N12: 42.2 %
A13: 1 | B13: 2009 | C13: 12. | D13: KöLa | F13: ykköspesis | AA13: 0
B14: 2009 | C14: 6. | D14: KoU | E14: 21 | F14: 0 | G14: 1 | H14: 2 | I14: 38 | J14: 15 | K14: 18 | L14: 4 | M14: 1 | N14: 46.3 % | U14: 6 | V14: 0 | W14: 0 | X14: 0 | Y14: 5 | Z14: 38.5 % | AG14: 2-4 ViVe
B15: 2010 | C15: 7. | D15: KoU | E15: 26 | F15: 0 | G15: 3 | H15: 3 | I15: 43 | J15: 21 | K15: 10 | L15: 9 | M15: 3 | N15: 42.2 % | U15: 3 | V15: 0 | W15: 0 | X15: 0 | Y15: 5 | Z15: 41.7 % | AA15: 66 | AG15: 0-3 ViVe
B16: 2011 | C16: 1. | D16: AA | F16: ykköspesis
B17: 2012 | C17: 12. | D17: AA | E17: 26 | F17: 0 | G17: 11 | H17: 2 | I17: 41 | J17: 18 | K17: 5 | L17: 7 | M17: 11 | N17: 38.0 % | AG17: 13 | AH17: 27
B18: 2013 | C18: 12. | D18: AA | E18: 26 | F18: 0 | G18: 3 | H18: 1 | I18: 26 | J18: 13 | K18: 5 | L18: 5 | M18: 3 | N18: 27.7 % | AA18: 0 | AG18: 12 | AH18: 20
B19: 2014 | C19: 10. | D19: AA | E19: 4 | F19: 0 | G19: 0 | H19: 0 | I19: 1 | J19: 0 | K19: 1 | L19: 0 | M19: 0 | N19: 9.1 % | AA19: 0
B20: 2014 | C20: 11. | D20: YPJ | F20: ykköspesis | AA20: 0
B21: 2015 | C21: 11. | D21: KoU | E21: 16 | F21: 0 | G21: 2 | H21: 4 | I21: 27 | J21: 10 | K21: 10 | L21: 5 | M21: 2 | N21: 43.5 % | AA21: 40
B22: 2016 | C22: 11. | D22: JaJa | F22: ykköspesis | AA22: 74
B23: 2016 | C23: 6. | D23: KoU | E23: 6 | F23: 0 | G23: 0 | H23: 2 | I23: 6 | J23: 1 | K23: 3 | L23: 2 | M23: 0 | N23: 50.0 % | AA23: 85
B24: Yhteensä | E24: 198 | F24: 2 | G24: 30 | H24: 39 | I24: 338 | J24: 199 | K24: 70 | L24: 37 | M24: 32 | N24: 42.0 % | P24: 0-0-0 | Q24: 0-0-0 | R24: 0-0-0 | S24: 0-0-0 | U24: =PRODUCT(E30) -> 28 | V24: 0 | W24: 1 | X24: 2 | Y24: 31 | Z24: =PRODUCT(N30) -> 33.0 % | AA24: =SUM(AA3:AA23) -> 265 | AB24: 0-0-0 | AC24: 0-0-0 | AD24: 0-0-0 | AE24: 0-0-0 | AG24: 1/4 | AH24: 0/1 | AI24: 1/1 | AJ24: 0/0 | AL24: 0 | AM24: 0 | AN24: 0 | AO24: 0 | AP24: 0 | AQ24: 1
AG25: 25.0 % | AH25: 0.0 % | AI25: 100.0 % | AJ25: 0.0 %
B26: Pesispörssi | D26: 254.0
B28: URA SUPERISSA | E28: OTT | F28: KUN | G28: LÖI | H28: TOI | I28: KL | K28: ka/L | L28: ka/T | M28: ka/KL | N28: KL-% | P28: ENSIMMÄISET RUNKOSARJASSA | AG28: ENSIMMÄISET PUDOTUSPELEISSÄ | AL28: YLEISÖ
B29: Runkosarja | E29: 198 | F29: 2 | G29: 30 | H29: 39 | I29: 338 | K29: 0.16 | L29: 0.20 | M29: 1.71 | N29: 42.0 % | P29: Ottelu | R29: 06.07. 2005 KoU - JoMa 2-0 (2-0, 11-1) | AA29: 1. ottelu | AD29: 20 v 1 kk 5 pv | AG29: Ottelu | AH29: 1. 13.08. 2006 Lippo - KoU 1-2 s | AL29: 1134 | AN29: 21 v 2 kk 12 pv
B30: Ylempi loppusarja | E30: 28 | F30: 0 | G30: 1 | H30: 2 | I30: 31 | K30: 0.04 | L30: 0.07 | M30: 1.11 | N30: 33.0 % | P30: Lyöty | R30: 04.08. 2006 KoU - IPV 2-0 (2-0, 8-4) | AA30: 22. ottelu | AD30: 21 v 2 kk 3 pv | AG30: Lyöty | AH30: 14. 26.08. 2007 KoU - ViVe 2-1 s | AL30: 3547 | AN30: 22 v 2 kk 25 pv
B31: Alempi loppusarja | E31: 16 | F31: 0 | G31: 13 | H31: 3 | I31: 37 | K31: 0.81 | L31: 0.19 | M31: 2.31 | N31: 42.5 % | P31: Tuotu | R31: 06.07. 2005 KoU - JoMa 2-0 (2-0, 11-1) | AA31: 1. ottelu | AD31: 20 v 1 kk 5 pv | AG31: Tuotu | AH31: 4. 20.08. 2006 NJ - KoU 1-2 k | AL31: 2511 | AN31: 21 v 2 kk 19 pv
B32: KAIKKI | E32: 242 | F32: 2 | G32: 44 | H32: 44 | I32: 406 | K32: 0.19 | L32: 0.18 | M32: 1.68 | N32: 41.2 % | P32: Kunnari | R32: 25.05. 2007 KoU - Lippo 2-0 (7-2, 3-1) | AA32: 29. ottelu | AD32: 21 v 11 kk 24 pv | AG32: Kunnari
B34: Seurat | D34: KoU = Koskenkorvan Urheilijat (1945), kasvattajaseura | N34: AA = Alajärven Ankkurit (1944)
D35: KylKai = Kylävuoren Kaiku (1993) | N35: YPJ = Ylihärmän Pesis-Junkkarit (1996)
D36: KaKa = Kauhajoen Karhu (1910) | N36: JaJa = Jalasjärven Jalas (1914)

Sheet MYP, MSS
B1: Jouni Oja-Lipasti | E1: 1.6.1985 Ilmajoki
B2: YKKÖSPESIS | E2: Runkosarja | L2: Runkosarja TOP-10 | Q2: Jatkosarjat | X2: SUOMENSARJA | AA2: Runkosarja | AH2: Runkosarja TOP-10 | AM2: Jatkosarjat
B3: Vuosi | C3: Sija | D3: Seura | E3: OTT | F3: KUN | G3: LÖI | H3: TOI | I3: KL | J3: KL-% | L3: LÖI | M3: TOI | N3: L+T | O3: KL | Q3: OTT | R3: KUN | S3: LÖI | T3: TOI | U3: KL | V3: KL-% | X3: Vuosi | Y3: Sija | Z3: Seura | AA3: OTT | AB3: KUN | AC3: LÖI | AD3: TOI | AE3: KL | AF3: KL-% | AH3: LÖI | AI3: TOI | AJ3: L+T | AK3: KL | AM3: OTT | AN3: KUN | AO3: LÖI | AP3: TOI | AQ3: KL | AR3: KL-%
X4: 2002 | Y4: 1. | Z4: KylKai | AA4: 6 | AB4: 0 | AC4: 0 | AD4: 8 | AE4: 14 | AF4: 45.2 % | AG4: 31 | AM4: 1 | AN4: 0 | AO4: 0 | AP4: 1 | AQ4: 3 | AR4: 50.0 % | AS4: 6
B5: 2003 | C5: 14. | D5: KylKai | E5: 13 | F5: 0 | G5: 0 | H5: 7 | I5: 29 | J5: 52.7 % | K5: 55 | Q5: 2 | R5: 0 | S5: 0 | T5: 0 | U5: 7 | V5: 53.8 % | W5: 13
B6: 2004 | C6: 7. | D6: KaKa | E6: 22 | F6: 0 | G6: 1 | H6: 15 | I6: 69 | J6: 52.3 % | K6: 132
B7: 2005 | C7: 8. | D7: KaKa | E7: 21 | F7: 1 | G7: 0 | H7: 21 | I7: 81 | J7: 60.0 % | K7: 135
B8: 2006 | C8: 11. | D8: KaKa | E8: 7 | F8: 0 | G8: 2 | H8: 4 | I8: 25 | J8: 54.3 % | K8: 46
B10: 2009 | C10: 12. | D10: KöLa | E10: 3 | F10: 0 | G10: 0 | H10: 1 | I10: 11 | J10: 45.8 % | K10: 24
B12: 2011 | C12: 1. | D12: AA | E12: 22 | F12: 0 | G12: 16 | H12: 11 | I12: 60 | J12: 50.8 % | K12: 118 | Q12: 7 | R12: 0 | S12: 4 | T12: 4 | U12: 24 | V12: 58.5 % | W12: 41
B14: 2014 | C14: 11. | D14: YPJ | E14: 16 | F14: 0 | G14: 2 | H14: 8 | I14: 40 | J14: 50.0 % | K14: 80 | Q14: 4 | R14: 0 | S14: 0 | T14: 2 | U14: 10 | V14: 58.8 % | W14: 17
B16: 2016 | C16: 11. | D16: JaJa | E16: 15 | F16: 1 | G16: 14 | H16: 8 | I16: 63 | J16: 53.4 % | K16: 118 | Q16: 2 | R16: 0 | S16: 1 | T16: 2 | U16: 7 | V16: 53.8 % | W16: 13
B17: YHTEENSÄ | E17: =SUM(E4:E16) -> 119 | F17: =SUM(F4:F16) -> 2 | G17: =SUM(G4:G16) -> 35 | H17: =SUM(H4:H16) -> 75 | I17: =SUM(I4:I16) -> 378 | J17: =PRODUCT(I17/K17) -> 53.4 % | K17: =SUM(K4:K16) -> 708 | Q17: =SUM(Q4:Q16) -> 15 | R17: =SUM(R4:R16) -> 0 | S17: =SUM(S4:S16) -> 5 | T17: =SUM(T4:T16) -> 8 | U17: =SUM(U4:U16) -> 48 | V17: =PRODUCT(U17/W17) -> 57.1 % | W17: =SUM(W4:W16) -> 84 | X17: YHTEENSÄ | AA17: =SUM(AA4:AA16) -> 6 | AB17: =SUM(AB4:AB16) -> 0 | AC17: =SUM(AC4:AC16) -> 0 | AD17: =SUM(AD4:AD16) -> 8 | AE17: =SUM(AE4:AE16) -> 14 | AF17: =PRODUCT(AE17/AG17) -> 45.2 % | AG17: =SUM(AG4:AG16) -> 31 | AM17: =SUM(AM4:AM16) -> 1 | AN17: =SUM(AN4:AN16) -> 0 | AO17: =SUM(AO4:AO16) -> 0 | AP17: =SUM(AP4:AP16) -> 1 | AQ17: =SUM(AQ4:AQ16) -> 3 | AR17: =PRODUCT(AQ17/AS17) -> 50.0 % | AS17: =SUM(AS4:AS16) -> 6
B19: KAIKKI OTTELUT | E19: OTT | F19: KUN | G19: LÖI | H19: TOI | I19: KL | J19: KL-% | L19: ka/L | M19: ka/T | N19: ka/l+t | O19: ka/kl | R19: Seurat | T19: KoU = Koskenkorvan Urheilijat (1945), kasvattajaseura
B20: SUPERPESIS | E20: 242 | F20: 2 | G20: 44 | H20: 44 | I20: 406 | J20: 41.2 % | K20: =PRODUCT(I20/J20) -> 985.4368932 | L20: =PRODUCT((F20+G20)/E20) -> 0.19 | M20: =PRODUCT(H20/E20) -> 0.18 | N20: =PRODUCT((F20+G20+H20)/E20) -> 0.37 | O20: =PRODUCT(I20/E20) -> 1.68 | T20: KylKai = Kylävuoren Kaiku (1993)
B21: YKKÖSPESIS | E21: =PRODUCT(E17+Q17) -> 134 | F21: =PRODUCT(F17+R17) -> 2 | G21: =PRODUCT(G17+S17) -> 40 | H21: =PRODUCT(H17+T17) -> 83 | I21: =PRODUCT(I17+U17) -> 426 | J21: =PRODUCT(I21/K21) -> 53.8 % | K21: =PRODUCT(K17+W17) -> 792 | L21: =PRODUCT((F21+G21)/E21) -> 0.31 | M21: =PRODUCT(H21/E21) -> 0.62 | N21: =PRODUCT((F21+G21+H21)/E21) -> 0.93 | O21: =PRODUCT(I21/E21) -> 3.18 | T21: KaKa = Kauhajoen Karhu (1910)
B22: SUOMENSARJA | E22: =PRODUCT(AA17+AM17) -> 7 | F22: =PRODUCT(AB17+AN17) -> 0 | G22: =PRODUCT(AC17+AO17) -> 0 | H22: =PRODUCT(AD17+AP17) -> 9 | I22: =PRODUCT(AE17+AQ17) -> 17 | J22: =PRODUCT(I22/K22) -> 45.9 % | K22: =PRODUCT(AG17+AS17) -> 37 | L22: =PRODUCT((F22+G22)/E22) -> 0.00 | M22: =PRODUCT(H22/E22) -> 1.29 | N22: =PRODUCT((F22+G22+H22)/E22) -> 1.29 | O22: =PRODUCT(I22/E22) -> 2.43 | T22: AA = Alajärven Ankkurit (1944)
B23: YHTEENSÄ | E23: =SUM(E20:E22) -> 383 | F23: =SUM(F20:F22) -> 4 | G23: 84 | H23: 136 | I23: 849 | J23: =PRODUCT(I23/K23) -> 46.8 % | K23: =SUM(K20:K22) -> 1814.436893 | L23: =PRODUCT((F23+G23)/E23) -> 0.23 | M23: =PRODUCT(H23/E23) -> 0.36 | N23: =PRODUCT((F23+G23+H23)/E23) -> 0.58 | O23: =PRODUCT(I23/E23) -> 2.22 | T23: YPJ = Ylihärmän Pesis-Junkkarit (1996)
T24: JaJa = Jalasjärven Jalas (1914)

Sheet Arvo-ottelut
B1: ITÄ - LÄNSI - KORTTI
B2: Jouni Oja-Lipasti | C2: 1.6.1985 Ilmajoki
B3: B - POJAT | C3: Itä - Länsi, tulos | D3: Joukkue | E3: Seura | G3: V | H3: T | I3: H | J3: Up. | K3: Lj. | L3: Palk. | M3: O | N3: K | O3: L | P3: T | Q3: KL | R3: 1 | S3: 2 | T3: 3 | U3: k | V3: KL-% | W3: Pelinjohtaja | X3: Yleisöä
B4: 28.06. 2002 Ilmajoki | C4: 0-1 (0-5, 1-1) | D4: Länsi | E4: KylKai | G4: 1 | J4: 1v | K4: 2 | L4: S | M4: 1 | O4: 1 | P4: 0 | Q4: 6/6 | S4: 4/4 | T4: 1/1 | U4: 1/1 | V4: 100.0 % | W4: Markku Puhtimäki | X4: 1059
B5: A - POJAT
B6: 23.07. 2005 Oulu | C6: 2-1 (0-2, 3-2, 0-0, 2-1) | D6: Länsi | E6: KoU | I6: 1 | J6: 1v | K6: 6 | M6: 1 | Q6: 3/5 | R6: 1/1 | S6: 2/3 | U6: 0/1 | V6: 60.0 % | W6: Juha Luhtavaara | X6: 1462
B7: 30.06. 2006 Kitee | C7: 0-2 (0-1, 0-1) | D7: Länsi | E7: KoU | G7: 1 | J7: 1v | K7: 9 | L7: II p | M7: 1 | Q7: 2/4 | R7: 2/2 | S7: 0/1 | U7: 0/1 | V7: 50.0 % | W7: Sami-Petteri Kivimäki | X7: 2125
B8: Yhteensä | G8: 1 | I8: 1 | M8: =SUM(M6:M7) -> 2 | Q8: 5/9 | R8: 3/3 | S8: 2/4 | U8: 0/2 | V8: 55.6 %

Sheet Kärkilyönnit
B1: KÄRKILYÖNNIT RUNKOSARJASSA | V1: VUOSITTAISET SIJOITUKSET TOP - 30
G2: 0 > 1 | J2: 1 > 2 | M2: 2 > 3 | P2: 3 > k | S2: Yhteensä
B3: Vuosi | C3: Sija | D3: Seura | E3: OTT | F3: KL | G3: YHT | H3: % | I3: KL | J3: YHT | K3: % | L3: KL | M3: YHT | N3: % | O3: KL | P3: YHT | Q3: % | R3: KL | S3: YHT | T3: % | V3: Vuosi | W3: Sija | X3: Seura | Y3: 0 > 1 | Z3: 1 > 2 | AA3: 2 > 3 | AB3: 3 > k | AC3: KL
B4: 2005 | C4: 9. | D4: KoU | E4: 2 | F4: 1 | G4: 5 | H4: 20.0 % | I4: 0 | J4: 0 | K4: 0.0 % | L4: 0 | M4: 0 | N4: 0.0 % | O4: 0 | P4: 0 | Q4: 0.0 % | R4: 1 | S4: 5 | T4: 20.0 % | V4: 2005 | W4: 9. | X4: KoU
B5: 2006 | C5: 8. | D5: KoU | E5: 22 | F5: 49 | G5: 94 | H5: 52.1 % | I5: 7 | J5: 13 | K5: 53.8 % | L5: 1 | M5: 9 | N5: 11.1 % | O5: 1 | P5: 4 | Q5: 25.0 % | R5: 58 | S5: 120 | T5: 48.3 % | V5: 2006 | W5: 8. | X5: KoU | Y5: 28.
B6: 2007 | C6: 5. | D6: KoU | E6: 26 | F6: 40 | G6: 84 | H6: 47.6 % | I6: 8 | J6: 15 | K6: 53.3 % | L6: 3 | M6: 14 | N6: 21.4 % | O6: 11 | P6: 12 | Q6: 91.7 % | R6: 62 | S6: 125 | T6: 49.6 % | V6: 2007 | W6: 5. | X6: KoU | Y6: 29.
B7: 2008 | C7: 11. | D7: KoU | E7: 23 | F7: 31 | G7: 67 | H7: 46.3 % | I7: 3 | J7: 7 | K7: 42.9 % | L7: 1 | M7: 3 | N7: 33.3 % | O7: 0 | P7: 6 | Q7: 0.0 % | R7: 35 | S7: 83 | T7: 42.2 % | V7: 2008 | W7: 11. | X7: KoU
B8: 2009 | C8: 6. | D8: KoU | E8: 21 | F8: 15 | G8: 39 | H8: 38.5 % | I8: 18 | J8: 31 | K8: 58.1 % | L8: 4 | M8: 7 | N8: 57.1 % | O8: 1 | P8: 5 | Q8: 20.0 % | R8: 38 | S8: 82 | T8: 46.3 % | V8: 2009 | W8: 6. | X8: KoU
B9: 2010 | C9: 7. | D9: KoU | E9: 26 | F9: 21 | G9: 46 | H9: 45.7 % | I9: 10 | J9: 27 | K9: 37.0 % | L9: 9 | M9: 18 | N9: 50.0 % | O9: 3 | P9: 11 | Q9: 27.3 % | R9: 43 | S9: 102 | T9: 42.2 % | V9: 2010 | W9: 7. | X9: KoU
B10: 2011 | V10: 2011
B11: 2012 | C11: 12. | D11: AA | E11: 26 | F11: 18 | G11: 25 | H11: 72.0 % | I11: 5 | J11: 25 | K11: 20.0 % | L11: 7 | M11: 23 | N11: 30.4 % | O11: 11 | P11: 35 | Q11: 31.4 % | R11: 41 | S11: 108 | T11: 38.0 % | V11: 2012 | W11: 12. | X11: AA
B12: 2013 | C12: 12. | D12: AA | E12: 26 | F12: 13 | G12: 34 | H12: 38.2 % | I12: 5 | J12: 33 | K12: 15.2 % | L12: 5 | M12: 18 | N12: 27.8 % | O12: 3 | P12: 9 | Q12: 33.3 % | R12: 26 | S12: 94 | T12: 27.7 % | V12: 2013 | W12: 12. | X12: AA
B13: 2014 | C13: 11. | D13: AA | E13: 4 | F13: 0 | G13: 2 | H13: 0.0 % | I13: 1 | J13: 2 | K13: 50.0 % | L13: 0 | M13: 6 | N13: 0.0 % | O13: 0 | P13: 1 | Q13: 0.0 % | R13: 1 | S13: 11 | T13: 9.1 % | V13: 2014 | W13: 11. | X13: AA
B14: 2015 | C14: 11. | D14: KoU | E14: 16 | F14: 10 | G14: 23 | H14: 43.5 % | I14: 10 | J14: 21 | K14: 47.6 % | L14: 5 | M14: 12 | N14: 41.7 % | O14: 2 | P14: 6 | Q14: 33.3 % | R14: 27 | S14: 62 | T14: 43.5 % | V14: 2015 | W14: 11. | X14: KoU
B15: 2016 | C15: 6. | D15: KoU | E15: 6 | F15: 1 | G15: 1 | H15: 100.0 % | I15: 3 | J15: 5 | K15: 60.0 % | L15: 2 | M15: 5 | N15: 40.0 % | O15: 0 | P15: 1 | Q15: 0.0 % | R15: 6 | S15: 12 | T15: 50.0 % | V15: 2016 | W15: 6. | X15: KoU
B16: Yhteensä | E16: =SUM(E4:E15) -> 198 | F16: =SUM(F4:F15) -> 199 | G16: =SUM(G4:G15) -> 420 | H16: =PRODUCT(F16/G16) -> 47.4 % | I16: =SUM(I4:I15) -> 70 | J16: =SUM(J4:J15) -> 179 | K16: =PRODUCT(I16/J16) -> 39.1 % | L16: =SUM(L4:L15) -> 37 | M16: =SUM(M4:M15) -> 115 | N16: =PRODUCT(L16/M16) -> 32.2 % | O16: =SUM(O4:O15) -> 32 | P16: =SUM(P4:P15) -> 90 | Q16: =PRODUCT(O16/P16) -> 35.6 % | R16: =SUM(R4:R15) -> 338 | S16: =SUM(S4:S15) -> 804 | T16: =PRODUCT(R16/S16) -> 42.0 %
B18: KÄRKILYÖNNIT YLEMMISSÄ PUDOTUSPELEISSÄ | V18: VUOSITTAISET SIJOITUKSET TOP - 30
G19: 0 > 1 | J19: 1 > 2 | M19: 2 > 3 | P19: 3 > k | S19: Yhteensä
B20: Vuosi | C20: Sija | D20: Seura | E20: OTT | F20: KL | G20: YHT | H20: % | I20: KL | J20: YHT | K20: % | L20: KL | M20: YHT | N20: % | O20: KL | P20: YHT | Q20: % | R20: KL | S20: YHT | T20: % | V20: Vuosi | W20: Sija | X20: Seura | Y20: 0 > 1 | Z20: 1 > 2 | AA20: 2 > 3 | AB20: 3 > k | AC20: KL
B21: 2006 | C21: 6. | D21: KoU | E21: 7 | F21: 11 | G21: 32 | H21: 34.4 % | I21: 1 | J21: 3 | K21: 33.3 % | L21: 0 | M21: 1 | N21: 0.0 % | O21: 0 | P21: 2 | Q21: 0.0 % | R21: 12 | S21: 38 | T21: 31.6 % | V21: 2006 | W21: 6. | X21: KoU | Y21: 25.
B22: 2007 | C22: 3. | D22: KoU | E22: 12 | F22: 6 | G22: 18 | H22: 33.3 % | I22: 0 | J22: 2 | K22: 0.0 % | L22: 2 | M22: 6 | N22: 33.3 % | O22: 1 | P22: 5 | Q22: 20.0 % | R22: 9 | S22: 31 | T22: 29.0 % | V22: 2007 | W22: 3. | X22: KoU
B23: 2008 | C23: 11. | D23: KoU | V23: 2008 | W23: 11. | X23: KoU
B24: 2009 | C24: 6. | D24: KoU | E24: 6 | F24: 0 | G24: 1 | H24: 0.0 % | I24: 3 | J24: 9 | K24: 33.3 % | L24: 2 | M24: 3 | N24: 66.7 % | O24: 0 | P24: 0 | Q24: 0.0 % | R24: 5 | S24: 13 | T24: 38.5 % | V24: 2009 | W24: 6. | X24: KoU
B25: 2010 | C25: 7. | D25: KoU | E25: 3 | F25: 4 | G25: 7 | H25: 57.1 % | I25: 1 | J25: 3 | K25: 33.3 % | L25: 0 | M25: 1 | N25: 0.0 % | O25: 0 | P25: 1 | Q25: 0.0 % | R25: 5 | S25: 12 | T25: 41.7 % | V25: 2010 | W25: 7. | X25: KoU
B26: Yhteensä | E26: =SUM(E19:E25) -> 28 | F26: =SUM(F21:F25) -> 21 | G26: =SUM(G21:G25) -> 58 | H26: =PRODUCT(F26/G26) -> 36.2 % | I26: =SUM(I21:I25) -> 5 | J26: =SUM(J21:J25) -> 17 | K26: =PRODUCT(I26/J26) -> 29.4 % | L26: =SUM(L21:L25) -> 4 | M26: =SUM(M21:M25) -> 11 | N26: =PRODUCT(L26/M26) -> 36.4 % | O26: =SUM(O21:O25) -> 1 | P26: =SUM(P21:P25) -> 8 | Q26: =PRODUCT(O26/P26) -> 12.5 % | R26: =SUM(R21:R25) -> 31 | S26: =SUM(S21:S25) -> 94 | T26: =PRODUCT(R26/S26) -> 33.0 %
B28: KÄRKILYÖNNIT
G29: 0 > 1 | J29: 1 > 2 | M29: 2 > 3 | P29: 3 > k | S29: Yhteensä
E30: OTT | F30: KL | G30: YHT | H30: % | I30: KL | J30: YHT | K30: % | L30: KL | M30: YHT | N30: % | O30: KL | P30: YHT | Q30: % | R30: KL | S30: YHT | T30: %
B31: RUNKOSARJA | E31: =PRODUCT(E16) -> 198 | F31: =PRODUCT(F16) -> 199 | G31: =PRODUCT(G16) -> 420 | H31: =PRODUCT(H16) -> 47.4 % | I31: =PRODUCT(I16) -> 70 | J31: =PRODUCT(J16) -> 179 | K31: =PRODUCT(K16) -> 39.1 % | L31: =PRODUCT(L16) -> 37 | M31: =PRODUCT(M16) -> 115 | N31: =PRODUCT(N16) -> 32.2 % | O31: =PRODUCT(O16) -> 32 | P31: =PRODUCT(P16) -> 90 | Q31: =PRODUCT(Q16) -> 35.6 % | R31: =PRODUCT(R16) -> 338 | S31: =PRODUCT(S16) -> 804 | T31: =PRODUCT(T16) -> 42.0 %
B32: PLAY OFF | E32: =PRODUCT(E26) -> 28 | F32: =PRODUCT(F26) -> 21 | G32: 58 | H32: 36.2 % | I32: 5 | J32: 17 | K32: 29.4 % | L32: 4 | M32: 11 | N32: 36.4 % | O32: 1 | P32: 8 | Q32: 12.5 % | R32: 31 | S32: 94 | T32: 33.0 %
